bitfinex/quotes_BTCUSD_20230106
["timestamp","ask_amount","ask_price","bid_price","bid_amount"]
[1673002488052,1.20983112,16784.0,16783.0,1.33903256]
[1673002488303,0.76427177,16784.0,16783.0,1.33909321]
[1673002488573,0.76427177,16784.0,16783.0,1.93493421]
[1673002489345,1.20983112,16784.0,16783.0,1.93493421]
[1673002489617,0.76424257,16784.0,16783.0,1.93493421]
[1673002489870,1.20980192,16784.0,16783.0,1.93493421]
[1673002490132,0.76424257,16784.0,16783.0,1.93493421]
[1673002490404,1.20980192,16784.0,16783.0,1.93493421]
[1673002490677,0.76424257,16784.0,16783.0,1.93493421]
[1673002490936,0.94251264,16784.0,16783.0,1.93493421]
[1673002491449,0.76421532,16784.0,16783.0,1.93493421]
[1673002493252,0.94251264,16784.0,16783.0,1.33903256]
[1673002493521,0.94251264,16784.0,16783.0,0.62913695]
[1673002494302,0.94251264,16784.0,16783.0,0.6291976]
[1673002495089,0.94251264,16784.0,16783.0,1.2250386]
[1673002495364,1.20973916,16784.0,16783.0,1.2250386]
[1673002495629,0.76417981,16784.0,16783.0,1.2250386]
[1673002496117,0.94251264,16784.0,16783.0,1.51785368]
[1673002496871,0.76416846,16784.0,16783.0,1.51785368]
[1673002498981,1.20972781,16784.0,16783.0,1.2250386]
[1673002499241,0.94251264,16784.0,16783.0,1.2250386]
[1673002499501,0.76414729,16784.0,16783.0,1.2250386]
[1673002499756,0.76414729,16784.0,16783.0,1.8208796]
[1673002500302,1.20970664,16784.0,16783.0,1.8208796]
[1673002500620,0.58587441,16784.0,16783.0,2.12219298]
[1673002500822,0.76414729,16784.0,16783.0,2.12219298]
[1673002501063,0.94230188,16784.0,16783.0,2.12219298]
[1673002501328,0.58587267,16784.0,16783.0,2.12219298]
[1673002502349,0.58587267,16784.0,16783.0,1.8293796]
[1673002502609,0.76414729,16784.0,16783.0,1.22497795]
[1673002502871,0.58608343,16784.0,16783.0,0.01331566]
[1673002504640,0.94238843,16784.0,16783.0,0.01331566]
[1673002504940,0.94238843,16784.0,16783.0,0.60915666]
[1673002505470,0.94238843,16784.0,16783.0,0.01331566]
[1673002506235,0.94234085,16784.0,16783.0,0.01331566]
[1673002506499,0.58608343,16784.0,16783.0,0.01331566]
[1673002507068,0.94233129,16784.0,16783.0,0.01331566]
[1673002507313,0.94232587,16784.0,16783.0,0.01331566]
[1673002507568,0.94232587,16784.0,16783.0,0.01322887]
[1673002507848,1.29858916,16784.0,16783.0,0.01322887]
[1673002508103,1.29528424,16784.0,16783.0,0.01322887]
[1673002508392,1.29528424,16784.0,16783.0,0.60558725]
[1673002509360,1.29528424,16784.0,16783.0,1.20142825]
[1673002510634,1.29528424,16784.0,16783.0,0.60558725]
[1673002511139,1.29528424,16784.0,16783.0,0.6056479]
[1673002511389,1.29528424,16784.0,16783.0,0.60558725]
[1673002511893,0.55314219,16784.0,16783.0,0.01322887]
[1673002512204,1.14894719,16784.0,16783.0,0.01322887]
[1673002512653,2.27924932,16784.0,16783.0,0.01322887]
[1673002512912,2.78020459,16784.0,16783.0,0.01322887]
[1673002513165,3.08020459,16784.0,16783.0,0.01322887]
[1673002513471,2.78020459,16784.0,16783.0,0.01322887]
[1673002514688,3.17775334,16784.0,16783.0,0.01322887]
[1673002518035,2.78020459,16784.0,16783.0,0.01322887]
[1673002518279,2.24570746,16784.0,16783.0,0.01322887]
[1673002518527,2.78043406,16784.0,16783.0,0.01322887]
[1673002518770,1.74475219,16784.0,16783.0,0.01322887]
[1673002519922,2.27948015,16784.0,16783.0,0.01322887]
[1673002520338,1.68367515,16784.0,16783.0,0.01322887]
[1673002522062,1.14894719,16784.0,16783.0,0.01322887]
[1673002522833,1.0881766,16784.0,16783.0,0.01322887]
[1673002524651,1.0881766,16784.0,16783.0,0.01328952]
[1673002524910,1.0881766,16784.0,16783.0,0.00822887]
[1673002525695,1.0881766,16784.0,16783.0,0.00828952]
[1673002525954,1.0881766,16784.0,16783.0,0.00822887]
[1673002526249,1.02849601,16784.0,16783.0,0.61024466]
[1673002528529,0.66903441,16784.0,16783.0,0.61024466]
[1673002528785,0.134,16784.0,16783.0,0.61024466]
[1673002529559,0.57996758,16784.0,16783.0,1.11024466]
[1673002529835,0.134,16784.0,16783.0,1.11024466]
[1673002530118,0.134,16784.0,16783.0,0.61024466]
[1673002530629,0.134,16784.0,16783.0,0.61030531]
[1673002530891,0.134,16784.0,16783.0,0.61024466]
[1673002531700,0.134,16784.0,16783.0,0.61030531]
[1673002531944,0.134,16784.0,16783.0,0.61024466]
[1673002532922,0.66903441,16784.0,16783.0,0.61024466]
[1673002533175,0.68412084,16784.0,16783.0,0.61030531]
[1673002533426,0.14908643,16784.0,16783.0,0.61030531]
[1673002533686,0.14908643,16784.0,16783.0,0.61024466]
[1673002534485,0.14908643,16784.0,16783.0,1.20614631]
[1673002534486,0.59509195,16784.0,16783.0,1.20614631]
[1673002534738,0.59509195,16784.0,16783.0,0.61030531]
[1673002536475,0.59509195,16784.0,16783.0,0.61024466]
[1673002536733,0.59509195,16784.0,16783.0,0.61030531]
[1673002536997,0.59509195,16784.0,16783.0,0.61024466]
[1673002537734,0.59509195,16784.0,16783.0,0.61030531]
[1673002539383,0.59509195,16784.0,16783.0,0.61024466]
[1673002540164,0.95189952,16784.0,16783.0,1.20608566]
[1673002540928,0.95189952,16784.0,16783.0,0.61024466]
[1673002541164,0.59509195,16784.0,16783.0,0.61024466]
[1673002542886,0.59509195,16784.0,16783.0,0.61030531]
[1673002543833,0.95185314,16784.0,16783.0,1.20614631]
[1673002544561,0.95185314,16784.0,16783.0,0.61030531]
[1673002544858,0.95185314,16784.0,16783.0,0.61024466]
[1673002545628,0.95185314,16784.0,16783.0,0.61030531]
[1673002546156,0.59509195,16784.0,16783.0,0.61024466]
[1673002548111,0.59509195,16784.0,16783.0,0.61030531]
[1673002548356,0.59509195,16784.0,16783.0,0.61024466]
[1673002548880,0.9518187,16784.0,16783.0,0.61024466]
[1673002549097,0.9518187,16784.0,16783.0,0.61015114]
[1673002549348,0.9518187,16784.0,16783.0,0.61021179]
[1673002550098,0.9518187,16784.0,16783.0,1.20605279]
[1673002550351,0.9518187,16784.0,16783.0,1.20599214]
[1673002550623,0.59509195,16784.0,16783.0,0.61015114]
[1673002551394,0.95178745,16784.0,16783.0,0.61015114]
[1673002552432,0.95178745,16784.0,16783.0,1.20599214]
[1673002552694,1.21931944,16784.0,16783.0,1.20599214]
[1673002553213,0.77331392,16784.0,16783.0,1.20599214]
[1673002553456,1.21931944,16784.0,16783.0,1.20599214]
[1673002553983,0.77331392,16784.0,16783.0,1.20605279]
[1673002554314,1.21931944,16784.0,16783.0,1.20605279]
[1673002554520,0.77331392,16784.0,16783.0,1.20605279]
[1673002554773,1.21934146,16784.0,16783.0,1.20605279]
[1673002555022,0.77333594,16784.0,16783.0,1.20605279]
[1673002555503,0.95178745,16784.0,16783.0,1.80189379]
[1673002556395,1.21937788,16784.0,16783.0,1.80189379]
[1673002556648,0.77337236,16784.0,16783.0,1.80189379]
[1673002557419,0.95178745,16784.0,16783.0,1.80189379]
[1673002557678,0.95178745,16784.0,16783.0,1.80183314]
[1673002558508,0.59509195,16784.0,16783.0,1.20599214]
[1673002558764,0.95191103,16784.0,16783.0,1.20599214]
[1673002559551,0.59509195,16784.0,16783.0,1.20599214]
[1673002560552,0.95199582,16784.0,16783.0,1.20599214]
[1673002560803,0.59509195,16784.0,16783.0,1.20599214]
[1673002561055,0.59509195,16784.0,16783.0,1.20605279]
[1673002561301,0.59509195,16784.0,16783.0,1.20599214]
[1673002561788,0.59509195,16784.0,16783.0,0.61015114]
[1673002562047,0.14908643,16784.0,16783.0,0.61015114]
[1673002562299,0.14908643,16784.0,16783.0,0.61021179]
[1673002562554,0.59532865,16784.0,16783.0,0.61021179]
[1673002562810,0.14908643,16784.0,16783.0,0.61021179]
[1673002563280,0.59534879,16784.0,16783.0,1.20605279]
[1673002563539,0.14908643,16784.0,16783.0,1.20605279]
[1673002563805,0.59544354,16784.0,16783.0,1.20605279]
[1673002564061,0.14908643,16784.0,16783.0,1.20605279]
[1673002565083,0.59543697,16784.0,16783.0,1.80189379]
[1673002565832,0.59543697,16784.0,16783.0,2.09280909]
[1673002566086,0.95260305,16784.0,16783.0,2.60747591]
[1673002566301,0.95260366,16784.0,16783.0,2.61597591]
[1673002567070,0.77413554,16784.0,16783.0,2.61597591]
[1673002567584,0.64013554,16784.0,16783.0,2.61397591]
[1673002567843,0.65513554,16784.0,16783.0,2.64097591]
[1673002569443,0.47649147,16784.0,16783.0,2.64097591]
[1673002569897,0.47649147,16784.0,16783.0,2.35006061]
[1673002570897,0.47649147,16784.0,16783.0,1.74804482]
[1673002571151,0.20860905,16784.0,16783.0,2.37281438]
[1673002571422,0.20860905,16784.0,16783.0,1.74804482]
[1673002571675,0.20860905,16784.0,16783.0,2.37552755]
[1673002572458,0.20860905,16784.0,16783.0,1.86086073]
[1673002572703,0.47649147,16784.0,16783.0,1.86086073]
[1673002573955,0.47649147,16784.0,16783.0,2.37552755]
[1673002574209,0.20860905,16784.0,16783.0,1.86086073]
[1673002574490,0.47649147,16784.0,16783.0,2.1591394]
[1673002574708,0.47649147,16784.0,16783.0,2.37552755]
[1673002574985,0.20860905,16784.0,16783.0,2.37552755]
[1673002576953,0.20860905,16784.0,16783.0,1.86086073]
[1673002577217,0.47649147,16784.0,16783.0,1.86086073]
[1673002577717,0.83365816,16784.0,16783.0,1.86086073]
[1673002577963,0.47649147,16784.0,16783.0,1.86086073]
[1673002578205,0.47649147,16784.0,16783.0,2.10767272]
[1673002578450,0.47649147,16784.0,16783.0,1.86086073]
[1673002580954,0.47649147,16784.0,16783.0,2.37552755]
[1673002581215,0.20860905,16784.0,16783.0,2.37552755]
[1673002582466,0.20860905,16784.0,16783.0,1.86086073]
[1673002582929,0.20860905,16784.0,16783.0,2.37552755]
[1673002583454,0.20860905,16784.0,16783.0,2.67380622]
[1673002584466,0.47649147,16784.0,16783.0,1.86086073]
[1673002585968,0.20860905,16784.0,16783.0,1.86086073]
[1673002586472,0.20860905,16784.0,16783.0,2.37552755]
[1673002586715,0.03008643,16784.0,16783.0,2.37552755]
[1673002590477,0.03008643,16784.0,16783.0,1.74804482]
[1673002590993,0.03008643,16784.0,16783.0,1.233378]
[1673002591258,0.03008643,16784.0,16783.0,1.8371555]
[1673002592793,0.03008643,16784.0,16783.0,2.43103263]
[1673002593296,0.03008643,16784.0,16783.0,2.94569945]
[1673002593802,0.03008643,16784.0,16783.0,1.8371555]
[1673002594619,0.03008643,16784.0,16783.0,2.35182232]
[1673002595343,0.20860905,16784.0,16783.0,2.35182232]
[1673002595594,0.03008643,16784.0,16783.0,2.35182232]
[1673002599311,0.03008643,16784.0,16783.0,1.8371555]
[1673002599566,0.03008643,16784.0,16783.0,2.35182232]
[1673002599851,0.20860905,16784.0,16783.0,2.12922599]
[1673002600920,0.20860905,16784.0,16783.0,1.8371555]
[1673002601686,0.03008643,16784.0,16783.0,2.35182232]
[1673002601953,0.20860905,16784.0,16783.0,1.8371555]
[1673002602707,0.20724905,16784.0,16783.0,1.8371555]
[1673002603210,0.47513147,16784.0,16783.0,1.8371555]
[1673002603459,0.20724905,16784.0,16783.0,2.43103263]
[1673002603703,0.47513147,16784.0,16783.0,2.43103263]
[1673002603952,0.20724905,16784.0,16783.0,2.43103263]
[1673002605780,0.20724905,16784.0,16783.0,2.94569945]
[1673002606511,0.20724905,16784.0,16783.0,2.43103263]
[1673002606803,0.20724905,16784.0,16783.0,2.94569945]
[1673002607062,0.20724905,16784.0,16783.0,2.43103263]
[1673002607587,0.47513147,16784.0,16783.0,2.43103263]
[1673002612275,0.47513147,16784.0,16783.0,2.94569945]
[1673002612504,0.20724905,16784.0,16783.0,2.94569945]
[1673002612966,0.47513147,16784.0,16783.0,2.43103263]
[1673002613968,0.20724905,16784.0,16783.0,2.43103263]
[1673002614485,0.20724905,16784.0,16783.0,2.94569945]
[1673002614732,0.20724905,16784.0,16783.0,2.43103263]
[1673002616216,0.20724905,16784.0,16783.0,2.34192195]
[1673002616217,0.02872643,16784.0,16783.0,2.34192195]
[1673002616474,0.02872643,16784.0,16783.0,2.52027215]
[1673002617218,0.02872643,16784.0,16783.0,2.82027215]
[1673002617468,0.02872643,16784.0,16783.0,10.02027215]
[1673002617720,0.02872643,16784.0,16783.0,9.84192195]
[1673002617721,0.20724905,16784.0,16783.0,9.84192195]
[1673002617974,0.20724905,16784.0,16783.0,10.34702061]
[1673002618234,0.20724905,16784.0,16783.0,9.84192195]
[1673002618738,0.20724905,16784.0,16783.0,10.39922697]
[1673002619247,0.20724905,16784.0,16783.0,10.84192195]
[1673002619504,0.20724905,16784.0,16783.0,11.62182022]
[1673002619716,0.20724905,16784.0,16783.0,9.84192195]
[1673002619986,0.02872643,16784.0,16783.0,11.02027215]
[1673002620240,0.02872643,16784.0,16783.0,11.32027215]
[1673002620449,0.02872643,16784.0,16783.0,11.02027215]
[1673002620672,0.02872643,16784.0,16783.0,10.7140118]
[1673002620940,0.20724905,16784.0,16783.0,10.7140118]
[1673002621450,0.20724905,16784.0,16783.0,10.5356616]
[1673002621716,0.20724905,16784.0,16783.0,10.7140118]
[1673002621966,0.20724905,16784.0,16783.0,10.5356616]
[1673002622472,0.02872643,16784.0,16783.0,3.52027215]
[1673002622723,0.02872643,16784.0,16783.0,2.52027215]
[1673002622978,0.02872643,16784.0,16783.0,10.73815318]
[1673002623205,0.02872643,16784.0,16783.0,11.00562223]
[1673002623466,0.20724905,16784.0,16783.0,10.22348636]
[1673002623716,0.20724905,16784.0,16783.0,10.04513616]
[1673002623972,0.20724905,16784.0,16783.0,2.54513616]
[1673002624739,0.47513147,16784.0,16783.0,2.54513616]
[1673002628239,0.47513147,16784.0,16783.0,2.54503427]
[1673002634034,0.83229816,16784.0,16783.0,2.54503427]
[1673002634286,0.47513147,16784.0,16783.0,2.54503427]
[1673002634718,0.47513147,16784.0,16783.0,10.04503427]
[1673002634961,0.20724905,16784.0,16783.0,10.55970109]
[1673002635221,0.20724905,16784.0,16783.0,11.73805129]
[1673002635972,0.20724905,16784.0,16783.0,12.03597129]
[1673002637657,0.20724905,16784.0,16783.0,10.52130447]
[1673002637926,0.20724905,16784.0,16783.0,11.03597129]
[1673002638178,0.20724905,16784.0,16783.0,12.03597129]
[1673002638405,0.20724905,16784.0,16783.0,11.85762109]
[1673002638631,0.20724905,16784.0,16783.0,12.03597129]
[1673002638840,0.20724905,16784.0,16783.0,11.85762109]
[1673002639267,0.47513147,16784.0,16783.0,11.55970109]
[1673002639487,0.20724905,16784.0,16783.0,11.55970109]
[1673002639741,0.20724905,16784.0,16783.0,11.04503427]
[1673002639987,0.20724905,16784.0,16783.0,11.55970109]
[1673002641001,0.20724905,16784.0,16783.0,11.85762109]
[1673002641766,0.20724905,16784.0,16783.0,12.03597129]
[1673002642519,0.20724905,16784.0,16783.0,11.52130447]
[1673002642801,0.20724905,16784.0,16783.0,11.85762109]
[1673002643045,0.20724905,16784.0,16783.0,11.55970109]
[1673002643797,0.20724905,16784.0,16783.0,11.73805129]
[1673002645540,0.20724905,16784.0,16783.0,11.22338447]
[1673002645792,0.20724905,16784.0,16783.0,11.73805129]
[1673002646989,0.02872643,16784.0,16783.0,11.73805129]
[1673002649215,0.20724905,16784.0,16783.0,11.73805129]
[1673002649716,0.20724905,16784.0,16783.0,11.04503427]
[1673002650240,0.47513147,16784.0,16783.0,11.04503427]
[1673002650512,0.20724905,16784.0,16783.0,11.04503427]
[1673002650977,0.20724905,16784.0,16783.0,11.55970109]
[1673002652738,0.20724905,16784.0,16783.0,11.22338447]
[1673002653235,0.20724905,16784.0,16783.0,11.04503427]
[1673002655636,0.20724905,16784.0,16783.0,11.55970109]
[1673002655854,0.47513147,16784.0,16783.0,11.55970109]
[1673002656125,0.47513147,16784.0,16783.0,11.04503427]
[1673002656370,0.47513147,16784.0,16783.0,11.55970109]
[1673002656970,0.47513147,16784.0,16783.0,11.04503427]
[1673002657998,0.20724905,16784.0,16783.0,11.04503427]
[1673002658213,0.47513147,16784.0,16783.0,11.04503427]
[1673002659175,0.20724905,16784.0,16783.0,11.22338447]
[1673002659427,0.20724905,16784.0,16783.0,11.73805129]
[1673002660452,0.20724905,16784.0,16783.0,11.22338447]
[1673002661190,0.20724905,16784.0,16783.0,11.73805129]
[1673002662164,0.20724905,16784.0,16783.0,12.03597129]
[1673002664368,0.20724905,16784.0,16783.0,11.52130447]
[1673002664630,0.20724905,16784.0,16783.0,12.03597129]
[1673002666114,0.20724905,16784.0,16783.0,11.73805129]
[1673002667404,0.20724905,16784.0,16783.0,11.22338447]
[1673002668890,0.20724905,16784.0,16783.0,11.73805129]
[1673002671329,0.20724905,16784.0,16783.0,12.03597129]
[1673002672613,0.20724905,16784.0,16783.0,11.52130447]
[1673002672860,0.20724905,16784.0,16783.0,12.03597129]
[1673002673069,0.20724905,16784.0,16783.0,11.52130447]
[1673002674811,0.20724905,16784.0,16783.0,12.03597129]
[1673002675564,0.20724905,16784.0,16783.0,11.31809026]
[1673002676136,0.20724905,16784.0,16783.0,12.00937238]
[1673002677164,0.21104453,16784.0,16783.0,12.00937238]
[1673002677989,0.47892695,16784.0,16783.0,2.81629471]
[1673002678521,0.47892695,16784.0,16783.0,10.31629471]
[1673002679275,0.47892695,16784.0,16783.0,10.83096153]
[1673002679531,0.21104453,16784.0,16783.0,11.00931173]
[1673002679841,0.21104453,16784.0,16783.0,11.01052491]
[1673002680864,0.47892695,16784.0,16783.0,10.83217471]
[1673002681141,0.21104453,16784.0,16783.0,11.01052491]
[1673002681388,0.21104453,16784.0,16783.0,10.71260491]
[1673002681641,0.21104453,16784.0,16783.0,10.19793809]
[1673002682149,0.47892695,16784.0,16783.0,10.01958789]
[1673002682919,0.47892695,16784.0,16783.0,11.01958789]
[1673002683160,0.47892695,16784.0,16783.0,2.51958789]
[1673002683922,0.83609364,16784.0,16783.0,2.51958789]
[1673002684137,0.65757102,16784.0,16783.0,2.51958789]
[1673002684354,0.83621019,16784.0,16783.0,2.51958789]
[1673002684604,0.4790435,16784.0,16783.0,2.51958789]
[1673002685101,0.65757102,16784.0,16783.0,2.51958789]
[1673002685599,0.65757102,16784.0,16783.0,1.92449758]
[1673002685854,0.65757102,16784.0,16783.0,1.92455824]
[1673002687930,0.83616997,16784.0,16783.0,1.92455824]
[1673002688196,0.65757102,16784.0,16783.0,1.92455824]
[1673002688726,0.65757102,16784.0,16783.0,0.04145217]
[1673002688727,0.53392329,16784.0,16783.0,0.04145217]
[1673002688984,0.53392329,16784.0,16783.0,0.03295217]
[1673002688985,0.08757275,16784.0,16783.0,0.03295217]
[1673002690029,0.53378967,16784.0,16783.0,0.03295217]
[1673002690295,0.08757275,16784.0,16783.0,0.03295217]
[1673002690574,0.53377745,16784.0,16783.0,0.03295217]
[1673002691099,0.08757275,16784.0,16783.0,0.03295217]
[1673002691442,0.53361399,16784.0,16783.0,0.03295217]
[1673002691600,0.08757275,16784.0,16783.0,0.03295217]
[1673002691846,0.7890495,16784.0,16783.0,0.03295217]
[1673002692344,0.25401509,16784.0,16783.0,0.03295217]
[1673002692861,0.75401509,16784.0,16783.0,0.03295217]
[1673002694175,0.25401509,16784.0,16783.0,0.03295217]
[1673002694682,0.08757275,16784.0,16783.0,0.03295217]
[1673002695435,0.68337775,16784.0,16783.0,0.03295217]
[1673002695699,1.18337775,16784.0,16783.0,0.03295217]
[1673002697249,1.08337775,16784.0,16783.0,0.03295217]
[1673002698533,1.52889841,16784.0,16783.0,0.03295217]
[1673002699094,1.12889841,16784.0,16783.0,0.03295217]
[1673002699534,1.35487109,16784.0,16783.0,0.03295217]
[1673002702360,1.95067609,16784.0,16783.0,0.03295217]
[1673002702627,2.56222026,16784.0,16783.0,0.03295217]
[1673002702941,2.06178959,16784.0,16783.0,0.03295217]
[1673002703148,2.11598453,16784.0,16783.0,0.03295217]
[1673002703404,2.65101894,16784.0,16783.0,0.03295217]
[1673002704255,2.03933394,16784.0,16783.0,0.03295217]
[1673002704518,2.65101894,16784.0,16783.0,0.03295217]
[1673002705309,2.03933394,16784.0,16783.0,0.03295217]
[1673002705614,2.11598453,16784.0,16783.0,0.03295217]
[1673002705867,2.65101894,16784.0,16783.0,0.03295217]
[1673002706141,2.03933394,16784.0,16783.0,0.03295217]
[1673002706396,2.65101894,16784.0,16783.0,0.03295217]
[1673002706674,2.11598453,16784.0,16783.0,0.03295217]
[1673002706976,1.50429953,16784.0,16783.0,0.03295217]
[1673002707256,2.65101894,16784.0,16783.0,0.03295217]
[1673002707506,2.11598453,16784.0,16783.0,0.03295217]
[1673002707782,2.65101894,16784.0,16783.0,0.03295217]
[1673002708034,2.03933394,16784.0,16783.0,0.03295217]
[1673002708286,2.65101894,16784.0,16783.0,0.03295217]
[1673002708551,2.42504626,16784.0,16783.0,0.03295217]
[1673002708792,1.27832685,16784.0,16783.0,0.03295217]
[1673002709042,1.27832685,16784.0,16783.0,0.03286467]
[1673002709805,0.47760028,16784.0,16783.0,0.55125589]
[1673002710064,0.83367301,16784.0,16783.0,0.55125589]
[1673002710318,0.83367301,16784.0,16783.0,0.03286467]
[1673002710590,0.47760028,16784.0,16783.0,0.03286467]
[1673002711883,0.83371159,16784.0,16783.0,0.03286467]
[1673002712408,0.47760028,16784.0,16783.0,0.03286467]
[1673002713188,0.83461478,16784.0,16783.0,0.03286467]
[1673002713429,0.83463814,16784.0,16783.0,0.03286467]
[1673002714458,0.83463814,16784.0,16783.0,0.03292532]
[1673002714730,0.83463814,16784.0,16783.0,0.03286467]
[1673002715498,0.47843804,16784.0,16783.0,0.03286467]
[1673002716762,0.47843804,16784.0,16783.0,0.03292532]
[1673002717011,0.47843804,16784.0,16783.0,0.03286467]
[1673002717324,0.68462801,16784.0,16783.0,0.03286467]
[1673002717512,0.98462801,16784.0,16783.0,0.03286467]
[1673002718026,2.46324115,16784.0,16783.0,0.03286467]
[1673002718312,2.72715242,16784.0,16783.0,0.03286467]
[1673002718600,2.11546742,16784.0,16783.0,0.03286467]
[1673002719074,2.11462966,16784.0,16783.0,0.03286467]
[1673002719839,2.72631466,16784.0,16783.0,0.03286467]
[1673002722417,2.19128025,16784.0,16783.0,0.03286467]
[1673002722643,2.72598371,16784.0,16783.0,0.03286467]
[1673002722891,3.06463993,16784.0,16783.0,0.03286467]
[1673002723169,2.52993647,16784.0,16783.0,0.03286467]
[1673002724733,1.91825147,16784.0,16783.0,0.03286467]
[1673002725002,2.52993647,16784.0,16783.0,0.03286467]
[1673002726877,3.12941939,16784.0,16783.0,0.03286467]
[1673002729302,3.42941939,16784.0,16783.0,0.03286467]
[1673002730582,3.42941939,16784.0,16783.0,0.03274959]
[1673002731090,3.43202673,16784.0,16783.0,0.03274959]
[1673002731610,2.82034173,16784.0,16783.0,0.03274959]
[1673002731859,3.46210661,16784.0,16783.0,0.03274959]
[1673002732114,3.43202673,16784.0,16783.0,0.03274959]
[1673002733394,2.82034173,16784.0,16783.0,0.03274959]
[1673002733648,3.43202673,16784.0,16783.0,0.03274959]
[1673002734142,2.82034173,16784.0,16783.0,0.03274959]
[1673002734394,3.43202673,16784.0,16783.0,0.03274959]
[1673002735149,0.5,16783.0,16780.0,2.54116801]
[1673002735409,0.44598244,16781.0,16780.0,2.02572614]
[1673002735670,0.44598244,16781.0,16780.0,2.02072614]
[1673002737185,0.46176271,16781.0,16780.0,2.02372614]
[1673002737442,0.46176271,16781.0,16780.0,2.02072614]
[1673002737786,0.47576271,16781.0,16780.0,2.02372614]
[1673002739557,0.02978027,16781.0,16780.0,2.02372614]
[1673002740840,0.47575616,16781.0,16780.0,2.02372614]
[1673002741680,0.47575616,16781.0,16780.0,2.0237868]
[1673002741681,0.83256811,16781.0,16780.0,2.0237868]
[1673002743114,1.10018174,16781.0,16780.0,2.02372614]
[1673002743358,0.83256811,16781.0,16780.0,2.67877814]
[1673002743608,1.1001811,16781.0,16780.0,2.6788388]
[1673002744109,0.65420521,16781.0,16780.0,2.6788388]
[1673002744638,0.83256811,16781.0,16780.0,2.67877814]
[1673002745131,1.10018662,16781.0,16780.0,2.67877814]
[1673002745429,1.10018467,16781.0,16780.0,2.67877814]
[1673002745660,1.10018512,16781.0,16780.0,2.67877814]
[1673002746436,0.83256811,16781.0,16780.0,2.67877814]
[1673002748196,0.83256811,16781.0,16780.0,2.6788388]
[1673002748964,0.8324271,16781.0,16780.0,2.67877814]
[1673002749331,0.47561515,16781.0,16780.0,2.67877814]
[1673002749476,0.47561515,16781.0,16780.0,2.6788388]
[1673002749993,0.83238225,16781.0,16780.0,2.6788388]
[1673002750505,0.47561515,16781.0,16780.0,2.67877814]
[1673002751009,0.83237444,16781.0,16780.0,2.67877814]
[1673002751256,0.47561515,16781.0,16780.0,2.67877814]
[1673002751819,0.47561515,16781.0,16780.0,2.6788388]
[1673002753335,0.83243271,16781.0,16780.0,2.6788388]
[1673002753835,0.83243595,16781.0,16780.0,2.6788388]
[1673002755652,0.83243595,16781.0,16780.0,3.2747858]
[1673002756401,0.83243595,16781.0,16780.0,3.76467635]
[1673002756931,1.10012219,16781.0,16780.0,3.76467635]
[1673002757166,0.83243595,16781.0,16780.0,3.76467635]
[1673002757675,0.83243595,16781.0,16780.0,4.36062335]
[1673002758467,1.10018687,16781.0,16780.0,4.36062335]
[1673002758960,0.83243595,16781.0,16780.0,4.36062335]
[1673002759205,0.83243595,16781.0,16780.0,3.87067214]
[1673002759722,0.47561515,16781.0,16780.0,3.27472514]
[1673002760510,0.47561515,16781.0,16780.0,2.67877814]
[1673002763093,0.02963926,16781.0,16780.0,2.67877814]
[1673002763819,0.02963926,16781.0,16780.0,2.6788388]
[1673002764076,0.02963926,16781.0,16780.0,2.67877814]
[1673002764842,0.02963926,16781.0,16780.0,2.6788388]
[1673002765065,0.02963926,16781.0,16780.0,2.67877814]
[1673002765839,0.02963926,16781.0,16780.0,2.6788388]
[1673002766102,0.02963926,16781.0,16780.0,0.67877814]
[1673002766607,0.62555126,16781.0,16780.0,0.67877814]
[1673002766900,0.02963926,16781.0,16780.0,1.17877814]
[1673002767140,0.02963926,16781.0,16780.0,0.67877814]
[1673002767384,0.02963926,16781.0,16780.0,1.17877814]
[1673002768184,0.02963926,16781.0,16780.0,1.1788388]
[1673002768676,0.02963926,16781.0,16780.0,0.02372614]
[1673002768926,1.81969726,16781.0,16780.0,0.02372614]
[1673002771297,1.81969726,16781.0,16780.0,0.02365702]
[1673002772061,2.06125729,16781.0,16780.0,0.02365702]
[1673002772404,1.52607836,16781.0,16780.0,0.02365702]
[1673002772618,2.13776336,16781.0,16780.0,0.02365702]
[1673002773140,1.28451833,16781.0,16780.0,0.02365702]
[1673002773420,1.22146326,16781.0,16780.0,0.02365702]
[1673002773684,2.93663518,16781.0,16780.0,0.02365702]
[1673002774101,3.16659432,16781.0,16780.0,0.02365702]
[1673002774457,3.22427885,16781.0,16780.0,0.02365702]
[1673002775129,3.60629704,16781.0,16780.0,0.02365702]
[1673002775662,2.94652225,16781.0,16780.0,0.02365702]
[1673002777507,3.53371072,16781.0,16780.0,0.02365702]
[1673002778322,3.53371072,16781.0,16779.0,0.02072529]
[1673002778323,0.5,16780.0,16779.0,0.02072529]
[1673002778573,3.58757846,16780.0,16779.0,0.02072529]
[1673002778830,4.12234205,16780.0,16779.0,0.02072529]
[1673002779304,4.17448204,16780.0,16779.0,0.02072529]
[1673002779841,5.05305039,16780.0,16779.0,0.02072529]
[1673002780321,4.17448204,16780.0,16779.0,0.02072529]
[1673002780323,4.21348204,16780.0,16779.0,0.02072529]
[1673002780831,3.78120928,16780.0,16779.0,0.02072529]
[1673002781115,4.14999352,16780.0,16779.0,0.02072529]
[1673002781368,3.31522993,16780.0,16779.0,0.02072529]
[1673002781636,3.91541322,16780.0,16779.0,0.02072529]
[1673002781983,3.97937317,16780.0,16779.0,0.02072529]
[1673002782175,3.57456053,16780.0,16779.0,0.02072529]
[1673002782432,4.02669675,16780.0,16779.0,0.02072529]
[1673002782694,4.60854423,16780.0,16779.0,0.02072529]
[1673002783479,4.15597174,16780.0,16779.0,0.02184296]
[1673002783742,3.04638004,16780.0,16779.0,0.02184296]
[1673002784214,3.04638004,16780.0,16779.0,0.02072529]
[1673002784217,3.49072603,16780.0,16779.0,0.02072529]
[1673002784479,2.90843873,16780.0,16779.0,0.02072529]
[1673002784736,3.26392816,16780.0,16779.0,0.02072529]
[1673002784992,3.85987516,16780.0,16779.0,0.02072529]
[1673002786473,1.32671854,16780.0,16779.0,0.02072529]
[1673002786726,0.71501854,16780.0,16779.0,0.02072529]
[1673002786978,0.47456795,16780.0,16779.0,0.02072529]
[1673002787482,1.07051495,16780.0,16779.0,0.02072529]
[1673002787737,1.66646195,16780.0,16779.0,0.02072529]
[1673002788810,2.11087202,16780.0,16779.0,0.02072529]
[1673002789526,1.51492502,16780.0,16779.0,0.02072529]
[1673002789779,1.77933608,16780.0,16779.0,0.02072529]
[1673002790030,2.13488542,16780.0,16779.0,0.02072529]
[1673002790326,1.53893842,16780.0,16779.0,0.02072529]
[1673002790805,1.27452736,16780.0,16779.0,0.02072529]
[1673002792337,1.87041136,16780.0,16779.0,0.02072529]
[1673002793585,2.46635836,16780.0,16779.0,0.02072529]
[1673002793838,2.11080902,16780.0,16779.0,0.02072529]
[1673002794090,2.11061795,16780.0,16779.0,0.02072529]
[1673002794336,2.11044009,16780.0,16779.0,0.02072529]
[1673002794608,2.10835583,16780.0,16779.0,0.02072529]
[1673002795896,2.4640307,16780.0,16779.0,0.02072529]
[1673002797146,2.46852934,16780.0,16779.0,0.02072529]
[1673002797399,2.11285447,16780.0,16779.0,0.02072529]
[1673002797640,1.87265908,16780.0,16779.0,0.02072529]
[1673002799401,1.27671208,16780.0,16779.0,0.02072529]